bitfinex/quotes_BTCUSD_20260310
["timestamp","ask_amount","ask_price","bid_price","bid_amount"]
[1773122114578,0.03,69996.0,69989.0,0.01662116]
[1773122116678,0.03,69994.0,69989.0,0.01662116]
[1773122117427,0.07143367,69995.0,69989.0,0.01662116]
[1773122117733,0.00022001,69996.0,69989.0,0.01662116]
[1773122118615,0.07143367,69995.0,69989.0,0.01662116]
[1773122119755,0.03022001,69996.0,69989.0,0.07143957]
[1773122119945,0.03022001,69996.0,69990.0,0.01662116]
[1773122120322,0.10199309,69996.0,69990.0,0.01662116]
[1773122123201,0.03034461,70000.0,69992.0,0.01662116]
[1773122123405,0.03034461,70000.0,69994.0,0.01662116]
[1773122123601,0.10177321,70000.0,69994.0,0.01662116]
[1773122123962,0.03034461,70000.0,69994.0,0.01662116]
[1773122124504,0.00022001,69996.0,69994.0,0.01662116]
[1773122125810,0.00022001,69996.0,69994.0,0.07143403]
[1773122125974,0.00022001,69996.0,69994.0,0.08805519]
[1773122126388,0.00022001,69996.0,69994.0,0.07143403]
[1773122126589,0.00022001,69996.0,69995.0,0.01662116]
[1773122127862,0.00022001,69996.0,69994.0,0.07143403]
[1773122128069,0.00022001,69996.0,69994.0,0.08805519]
[1773122128480,0.00022001,70001.0,69995.0,0.01662116]
[1773122128627,0.00022001,70003.0,69995.0,0.01662116]
[1773122129345,0.07164572,70003.0,69995.0,0.01662116]
[1773122129750,0.03,70002.0,69995.0,0.01662116]
[1773122130410,0.03,70002.0,69996.0,0.07143265]
[1773122130952,0.03022001,70002.0,69996.0,0.07143265]
[1773122132812,0.03,70001.0,69997.0,0.01662116]
[1773122133326,0.03,70001.0,69996.0,0.07143265]
[1773122133558,0.00022001,70011.0,69999.0,0.01662116]
[1773122133703,0.00022001,70011.0,70001.0,0.11458471]
[1773122133890,0.10163746,70011.0,70002.0,0.01662116]
[1773122134081,0.03022001,70011.0,70002.0,0.01662116]
[1773122134589,0.03022001,70011.0,70003.0,0.07142551]
[1773122134789,0.00022001,70011.0,70003.0,0.08804667]
[1773122136438,0.00022001,70011.0,70004.0,0.01662116]
[1773122136439,0.03022001,70011.0,70004.0,0.01662116]
[1773122136614,0.00584001,70012.0,70005.0,0.07142346]
[1773122136796,0.00584001,70012.0,70006.0,0.01662116]
[1773122137202,0.07163144,70017.0,70005.0,0.07142346]
[1773122137203,0.07152485,70028.0,70009.0,0.01662116]
[1773122137420,0.1015323,70021.0,70006.0,0.01662116]
[1773122137635,0.00022001,70019.0,70007.0,0.00144]
[1773122137836,0.00022001,70019.0,70007.0,0.01806116]
[1773122138683,0.00022001,70019.0,70009.0,0.07141938]
[1773122138827,0.00022001,70019.0,70011.0,0.01662116]
[1773122139420,0.03,70020.0,70011.0,0.01662116]
[1773122139421,0.03,70020.0,70011.0,0.11458471]
[1773122139622,0.03,70019.0,70012.0,0.01582467]
[1773122139758,0.03,70019.0,70012.0,0.01726467]
[1773122140636,0.03,70018.0,70012.0,0.01726467]
[1773122140784,0.03,70018.0,70013.0,0.0714153]
[1773122140990,0.03,70018.0,70013.0,0.05415063]
[1773122141629,0.03,70017.0,70013.0,0.05415063]
[1773122142556,0.0001246,70021.0,70013.0,0.05415063]
[1773122142851,0.0001246,70021.0,70013.0,0.05515063]
[1773122143616,0.0001246,70021.0,70013.0,0.05415063]
[1773122144267,0.00022001,70018.0,70013.0,0.05415063]
[1773122146514,0.00022001,70018.0,70014.0,0.01582467]
[1773122146667,0.00022001,70018.0,70013.0,0.05415063]
[1773122148968,0.00022001,70018.0,70013.0,0.0699753]
[1773122149797,0.00022001,70018.0,70013.0,0.05415063]
[1773122151417,0.00022001,70018.0,70013.0,0.05435063]
[1773122157615,0.03,70016.0,70005.0,0.0002]
[1773122157833,0.11011409,70013.0,70002.0,0.07142572]
[1773122158042,0.03,70010.0,70002.0,0.07142572]
[1773122158257,0.03,70010.0,70003.0,0.00144]
[1773122158480,0.03,70010.0,70002.0,0.07142572]
[1773122158692,0.03,70008.0,70005.0,0.0002]
[1773122158898,0.03,70006.0,69998.0,0.0169983]
[1773122159140,0.14428445,70005.0,69990.0,0.0001246]
[1773122159335,0.03,69999.0,69990.0,0.0001246]
[1773122159557,0.03,69995.0,69987.0,0.000145]
[1773122159784,0.03,69995.0,69985.0,0.0716432]
[1773122159785,0.04544022,69995.0,69985.0,0.0716432]
[1773122160379,0.04544022,69995.0,69986.0,0.00144]
[1773122160561,0.03,69997.0,69986.0,0.00144]
[1773122160766,0.03,69997.0,69985.0,0.0716432]
[1773122160767,0.03,69997.0,69985.0,0.0730832]
[1773122161078,0.04544022,69997.0,69985.0,0.0730832]
[1773122161805,0.03,69993.0,69985.0,0.0002]
[1773122162165,0.04544022,69993.0,69985.0,0.00144]
[1773122162387,0.04544022,69993.0,69984.0,0.00706]
[1773122162604,0.04544022,69991.0,69982.0,0.0002]
[1773122163031,0.03,69989.0,69980.0,0.0002]
[1773122163232,0.04544022,69989.0,69980.0,0.0002]
[1773122163974,0.03,69985.0,69975.0,0.00187]
[1773122164195,0.03,69977.0,69966.0,0.07146317]
[1773122164426,0.03,69977.0,69966.0,0.07146328]
[1773122164427,0.04544022,69977.0,69966.0,0.07146328]
[1773122165155,0.04544022,69977.0,69967.0,0.00144]
[1773122165511,0.04544022,69977.0,69966.0,0.07146328]
[1773122165512,0.04544022,69976.0,69962.0,0.07146698]
[1773122165718,0.04544022,69976.0,69961.0,0.00144]
[1773122166080,0.03,69972.0,69961.0,0.00144]
[1773122166688,0.03,69972.0,69962.0,0.07146736]
[1773122166886,0.0714533,69976.0,69965.0,0.10881795]
[1773122167059,0.03,69975.0,69966.0,0.0168806]
[1773122168153,0.10145325,69976.0,69967.0,0.07146226]
[1773122168372,0.10145325,69976.0,69967.0,0.08834286]
[1773122168575,0.10145325,69976.0,69967.0,0.08978286]
[1773122169187,0.03,69976.0,69967.0,0.07290226]
[1773122169385,0.03,69976.0,69968.0,0.0168806]
[1773122170170,0.03,69975.0,69968.0,0.0168806]
[1773122171945,0.03,69988.0,69970.0,0.05443129]
[1773122172091,0.00023,70000.0,69983.0,0.01693717]
[1773122172092,0.07143486,69994.0,69983.0,0.01693717]
[1773122172284,0.07143603,69993.0,69983.0,0.01837717]
[1773122173056,0.03,69992.0,69984.0,0.10881795]
[1773122173252,0.07287125,69998.0,69985.0,0.01693717]
[1773122173655,0.00023,70000.0,69986.0,0.10881795]
[1773122173859,0.00023,70000.0,69987.0,0.01693717]
[1773122174104,0.00023,70000.0,69989.0,0.01693717]
[1773122174307,0.00023,70000.0,69990.0,0.00144]
[1773122174455,0.00023,70000.0,69990.0,0.01837717]
[1773122174864,0.15376316,69998.0,69988.0,0.00144]
[1773122175269,0.11579078,69994.0,69983.0,0.07288388]
[1773122175451,0.15370259,69993.0,69983.0,0.07288388]
[1773122178211,0.03791181,69993.0,69983.0,0.07288388]
[1773122178977,0.03,69993.0,69983.0,0.07288388]
[1773122180234,0.00166001,69995.0,69984.0,0.01693717]
[1773122180435,0.00166001,69995.0,69985.0,0.01693717]
[1773122181303,0.03,69996.0,69988.0,0.10881795]
[1773122181490,0.00023,70000.0,69989.0,0.01837717]
[1773122183753,0.00023,70000.0,69991.0,0.01693717]
[1773122183955,0.03,69999.0,69991.0,0.01693717]
[1773122184969,0.00023,70000.0,69991.0,0.01693717]
[1773122185697,0.10165888,70000.0,69992.0,0.07143673]
[1773122186051,0.03023,70000.0,69992.0,0.07143673]
[1773122186754,0.03,69999.0,69992.0,0.07143673]
[1773122186951,0.00045001,70000.0,69992.0,0.07143673]
[1773122187151,0.48988161,70020.0,69992.0,0.07143673]
[1773122187152,0.00022001,70014.0,69992.0,0.07143673]
[1773122187376,8.401e-05,70009.0,69995.0,0.01693717]
[1773122187580,8.401e-05,70009.0,69997.0,0.10881795]
[1773122187750,8.401e-05,70009.0,70000.0,0.01693717]
[1773122188900,0.00022001,70018.0,70000.0,0.01693717]
[1773122189057,0.00022001,70018.0,70004.0,0.01693717]
[1773122189249,0.00022001,70018.0,70006.0,0.01693717]
[1773122189857,0.00022001,70018.0,70008.0,0.01693717]
[1773122190053,0.03,70021.0,70008.0,0.10881795]
[1773122190354,0.03,70021.0,70010.0,0.01693717]
[1773122190753,0.03,70021.0,70012.0,0.01693717]
[1773122190957,0.00144,70024.0,70012.0,0.01693717]
[1773122190958,0.03,70020.0,70012.0,0.01693717]
[1773122191970,0.03,70019.0,70013.0,0.0714153]
[1773122192978,0.03,70018.0,70013.0,0.0714153]
[1773122193967,0.03,70017.0,70012.0,0.0714153]
[1773122194494,0.00682954,70016.0,69997.0,0.01693717]
[1773122194793,0.03682954,70015.0,69998.0,0.01837717]
[1773122195014,0.03682954,70015.0,69998.0,0.01693717]
[1773122195178,0.03682954,70015.0,70000.0,0.01693717]
[1773122195494,0.03,70015.0,70000.0,0.01693717]
[1773122195718,0.00144,70018.0,70000.0,0.01693717]
[1773122196628,0.03,70019.0,70001.0,0.07142755]
[1773122196807,0.03144,70018.0,70005.0,0.01693717]
[1773122197883,0.03,70017.0,70007.0,0.01693717]
[1773122198367,0.03,70017.0,70007.0,0.01837717]
[1773122198860,0.03,70016.0,70009.0,0.01693717]
[1773122199575,0.03,70016.0,70008.0,0.0728604]
[1773122199979,0.03,70015.0,70008.0,0.0714204]
[1773122200283,0.03,70015.0,70008.0,0.0728604]
[1773122200840,0.03,70014.0,70008.0,0.0714204]
[1773122201043,0.03,70014.0,69999.0,0.07142959]
[1773122201044,0.00685889,70013.0,69999.0,0.07142959]
[1773122201283,0.03,70009.0,70000.0,0.07142791]
[1773122202272,0.03,70008.0,70000.0,0.07142791]
[1773122203359,0.03,70007.0,70000.0,0.07142791]
[1773122204394,0.00829889,70012.0,70000.0,0.07142791]
[1773122204395,0.03,70006.0,70000.0,0.07142791]
[1773122204998,0.03,70006.0,70000.0,0.07242791]
[1773122205206,0.03,70006.0,70000.0,0.07142791]
[1773122205433,0.03829889,70012.0,70000.0,0.07142791]
[1773122205655,0.03144,70012.0,70000.0,0.07142791]
[1773122206537,0.10285687,70012.0,70000.0,0.07142791]
[1773122206770,0.03,70010.0,70000.0,0.07142791]
[1773122207105,0.03,70010.0,70000.0,0.08851896]
[1773122207726,0.03144,70012.0,70000.0,0.08851896]
[1773122209295,0.03144,70012.0,70000.0,0.08871896]
[1773122215135,0.03,70011.0,70000.0,0.07162791]
[1773122216012,0.00144,70012.0,70000.0,0.07162791]
[1773122217251,0.03,70009.0,70000.0,0.07162791]
[1773122219677,0.03,70009.0,70000.0,0.08876335]
[1773122219855,0.03,70008.0,70000.0,0.08876335]
[1773122220989,0.03,70007.0,70000.0,0.08876335]
[1773122221966,0.00144,70012.0,70000.0,0.08876335]
[1773122222193,0.00144,70012.0,70001.0,0.01727144]
[1773122223171,0.00592264,70011.0,70000.0,0.07149191]
[1773122223374,0.00592264,70009.0,69993.0,0.0002]
[1773122223545,0.03586709,70003.0,69994.0,0.07167632]
[1773122223751,0.00144,70002.0,69994.0,0.07167632]
[1773122228901,0.00144,70002.0,69994.0,0.0002417]
[1773122230161,0.00144,70002.0,69994.0,0.07167632]
[1773122232124,0.03144,70002.0,69994.0,0.07167632]
[1773122233214,0.00144,70002.0,69994.0,0.07167632]
[1773122237717,0.00144,70002.0,69994.0,0.07187632]
[1773122238238,0.00166001,70002.0,69994.0,0.07187632]
[1773122240929,0.00166001,70002.0,69994.0,0.07187577]
[1773122243877,0.00144,70003.0,69996.0,0.01637923]
[1773122244082,0.00144,70003.0,69997.0,0.01637923]
[1773122244466,0.10141786,70011.0,69997.0,0.01637923]
[1773122244666,0.03,70011.0,69998.0,0.09986503]
[1773122244962,0.03144,70010.0,70001.0,0.01637923]
[1773122245161,0.03144,70010.0,70002.0,0.07142653]
[1773122245967,0.00144,70010.0,70002.0,0.07142653]
[1773122247621,0.00144,70010.0,70003.0,0.01637923]
[1773122249581,0.00144,70010.0,70004.0,0.07142449]
[1773122251027,0.00472612,70008.0,69995.0,0.07143306]
[1773122252777,0.00472612,70008.0,69995.0,0.07171436]
[1773122257758,0.03,70006.0,69995.0,0.07171436]
[1773122261704,0.03,70006.0,69995.0,0.07191436]
[1773122264441,0.03,70006.0,69995.0,0.08726165]
[1773122266860,0.03,70006.0,69995.0,0.08769245]
[1773122270919,0.03369713,70004.0,69995.0,0.07234565]
[1773122271168,0.00144,70003.0,69995.0,0.07234565]
[1773122274188,0.00144,70003.0,69996.0,0.01534729]
[1773122274362,0.00144,70003.0,69995.0,0.07234565]
[1773122281233,0.03144,70003.0,69995.0,0.07234565]
[1773122281619,0.00166001,70008.0,69997.0,0.01515465]
[1773122281825,0.00166001,70008.0,69999.0,0.01515465]
[1773122282023,0.00166001,70008.0,70001.0,0.01515465]
[1773122282228,0.00166001,70008.0,70001.0,0.09095399]
[1773122282428,0.00166001,70008.0,70003.0,0.01515465]
[1773122282624,0.00166001,70008.0,70005.0,0.01515465]
[1773122282827,0.07163117,70018.0,70008.0,0.01515465]
[1773122283033,0.00022001,70018.0,70011.0,0.01515465]
[1773122283212,0.00022001,70018.0,70012.0,0.01515465]
[1773122283414,0.03166001,70018.0,70014.0,0.01515465]
[1773122283757,0.0714041,70024.0,70014.0,0.01515465]
[1773122283758,0.00144,70026.0,70014.0,0.09017705]
[1773122283956,0.00144,70030.0,70017.0,0.01515465]
[1773122284171,0.00144,70030.0,70014.0,0.0004308]
[1773122284172,0.00144,70030.0,70021.0,0.01515465]
[1773122284374,0.00144,70030.0,70018.0,0.00144]
[1773122284375,0.00144,70030.0,70023.0,0.01515465]
[1773122284955,0.00144,70030.0,70023.0,0.01558545]
[1773122285403,0.03144,70030.0,70023.0,0.01558545]
[1773122285608,0.03144,70030.0,70023.0,0.0004308]
[1773122287312,0.10283819,70030.0,70023.0,0.0004308]
[1773122288177,0.03144,70030.0,70023.0,0.0004308]
[1773122288590,0.03,70029.0,70023.0,0.0004308]
[1773122289735,0.00144,70030.0,70023.0,0.0004308]
[1773122291555,0.03,70029.0,70018.0,0.07140954]
[1773122291902,0.04550513,70029.0,70018.0,0.07140954]
[1773122292891,0.03166001,70030.0,70018.0,0.07140954]
[1773122294533,0.08611339,70030.0,70018.0,0.07140954]
[1773122295365,0.08611339,70030.0,70018.0,0.08742243]
[1773122296742,0.15751146,70030.0,70018.0,0.08742243]
[1773122297750,0.15751146,70030.0,70008.0,0.07141836]
[1773122297930,0.03,70019.0,70008.0,0.07141836]
[1773122298726,0.03,70019.0,70004.0,0.11164655]
[1773122298727,0.03,70017.0,70004.0,0.11164655]
[1773122299121,0.03,70017.0,70004.0,0.12761022]
[1773122300176,0.03,70017.0,70004.0,0.01596367]
[1773122300390,0.03,70017.0,70002.0,0.07142598]
[1773122300573,0.03,70017.0,70002.0,0.08734067]
[1773122300788,0.03,70015.0,70010.0,0.0002]
[1773122301008,0.00144,70014.0,70010.0,0.0002]
[1773122302825,0.03,70013.0,70010.0,0.0002]
[1773122305186,0.03,70011.0,70010.0,0.0002]
[1773122306299,0.03,70013.0,70010.0,0.0002]
[1773122306998,0.1014154,70013.0,70004.0,0.07142449]
[1773122307208,0.03,70013.0,70004.0,0.07142449]
[1773122308779,0.03,70013.0,70004.0,0.07162449]
[1773122309198,0.10141595,70013.0,70004.0,0.07162449]
[1773122310260,0.10141595,70013.0,70000.0,0.07165849]
[1773122310540,0.03,70009.0,70000.0,0.07165849]
[1773122311677,0.03,70007.0,70000.0,0.07165849]
[1773122312663,0.03,70006.0,70000.0,0.07165849]
[1773122313040,0.03,70006.0,70001.0,0.09017705]
[1773122313243,0.03,70006.0,70002.0,0.01573763]
[1773122313634,0.03,70009.0,70002.0,0.08716314]
[1773122314287,0.03,70009.0,70002.0,0.08742954]
[1773122314787,0.10141942,70009.0,70002.0,0.08742954]
[1773122315010,0.10141942,70009.0,70002.0,0.0002664]
[1773122316062,0.10141942,70009.0,69998.0,0.01569058]
[1773122316235,0.00144,70008.0,69996.0,0.0002]
[1773122316398,0.00144,70008.0,69997.0,0.07143163]
[1773122316819,0.00144,70008.0,69996.0,0.0002]
[1773122317199,0.00144,70008.0,69996.0,0.07163249]
[1773122318294,0.03,70006.0,70002.0,0.0002]
[1773122318538,0.03,70006.0,69996.0,0.0002]
[1773122320573,0.03,70004.0,69996.0,0.01590685]
[1773122325933,0.03,70002.0,69994.0,0.07163265]
[1773122327181,0.03,70002.0,69994.0,0.07163431]
[1773122328010,0.10142737,70002.0,69994.0,0.0002]
[1773122329900,0.10286737,70002.0,69989.0,0.0002]
[1773122330230,0.03,69999.0,69986.0,0.07164202]
[1773122330830,0.03,69999.0,69991.0,0.08756416]
[1773122331154,0.03,69999.0,69986.0,0.07164202]
[1773122331155,0.03,70001.0,69995.0,0.01547131]
[1773122331374,0.03,70001.0,69995.0,0.01403131]
[1773122332261,0.03,69999.0,69991.0,0.0714377]
[1773122332475,0.03,69999.0,69991.0,0.0864369]
[1773122332803,0.03,69999.0,69992.0,0.0149992]
[1773122335367,0.10143005,69999.0,69992.0,0.0149992]
[1773122335871,0.10143005,69999.0,69992.0,0.0864357]
[1773122337672,0.03,69998.0,69992.0,0.0864357]
[1773122338695,0.03,70000.0,69992.0,0.0864357]
[1773122338895,0.03,70000.0,69992.0,0.0866357]
[1773122340606,0.03,69999.0,69992.0,0.0002]
[1773122340825,0.03,69999.0,69993.0,0.01524512]
[1773122341125,0.07154708,70008.0,69993.0,0.01524512]
[1773122341338,0.00144,70006.0,69997.0,0.01519948]
[1773122341549,0.07154708,70008.0,69997.0,0.08385663]
[1773122341755,0.03,70007.0,69998.0,0.01519948]
[1773122342126,0.03,70007.0,70000.0,0.01519948]
[1773122342525,0.07154708,70008.0,70002.0,0.01519948]
[1773122342757,0.00144,70013.0,70005.0,0.08385663]
[1773122342959,0.07141224,70016.0,70006.0,0.01519948]
[1773122343154,0.07141224,70016.0,70008.0,0.01519948]
[1773122343799,0.03,70015.0,70004.0,0.01515406]
[1773122344261,0.03,70013.0,70004.0,0.01515406]
[1773122344664,0.0300886,70013.0,70004.0,0.01515406]
[1773122345143,0.03,70011.0,70004.0,0.0714237]
[1773122345370,0.07150408,70013.0,70006.0,0.01511278]
[1773122346380,0.03,70012.0,70006.0,0.01511278]
[1773122346583,0.0300886,70012.0,70006.0,0.01511278]
[1773122347177,0.03,70010.0,70001.0,0.07142697]
[1773122347417,0.03,70010.0,69996.0,0.07163249]
[1773122347617,0.0300886,70010.0,69997.0,0.01522811]
[1773122349338,0.03,70008.0,69998.0,0.07143061]
[1773122349503,0.0300886,70008.0,69998.0,0.07143061]
[1773122352372,0.03,70006.0,69998.0,0.07143061]
[1773122354005,0.03,70005.0,69998.0,0.07143061]
[1773122355729,0.10142349,70005.0,69998.0,0.07143061]
[1773122356484,0.03,70005.0,69998.0,0.07143061]
[1773122358489,0.10142363,70005.0,69998.0,0.07143061]
[1773122359354,0.10142363,70005.0,69996.0,0.0002]
[1773122362763,0.10142363,70005.0,69997.0,0.01495536]
[1773122363594,0.10142363,70005.0,69996.0,0.0002]
[1773122366450,0.10142363,70005.0,69997.0,0.01495536]
[1773122366676,0.10142363,70005.0,69996.0,0.0002]
[1773122372176,0.10142363,70005.0,69996.0,0.01515536]
[1773122372343,0.10142363,70005.0,69998.0,0.01495536]
[1773122372344,0.07142407,70005.0,69998.0,0.01495536]
[1773122372555,0.07286346,70006.0,69998.0,0.01495536]
[1773122372892,0.07142407,70005.0,69998.0,0.01495536]
[1773122373614,0.07142127,70008.0,70001.0,0.01495536]
[1773122373807,0.07142127,70008.0,70002.0,0.01495536]
[1773122374427,0.07285465,70014.0,70002.0,0.01495536]
[1773122374631,0.03,70013.0,70002.0,0.01495536]
[1773122375539,0.03,70013.0,70002.0,0.07142588]
[1773122375713,0.03,70013.0,70004.0,0.01495536]
[1773122375862,0.07141465,70014.0,70004.0,0.01495536]
[1773122380324,0.07141465,70014.0,70004.0,0.07142431]
[1773122380528,0.07141465,70014.0,70004.0,0.01464065]
[1773122382013,0.07141465,70014.0,70003.0,0.00144]
[1773122382220,0.08584882,70014.0,70002.0,0.00144]
[1773122382396,0.08606883,70014.0,70002.0,0.00144]
[1773122384084,0.08606883,70014.0,70002.0,0.07286634]
[1773122389894,0.2486,70013.0,70002.0,0.07286634]
[1773122391458,0.03,70011.0,70002.0,0.07286634]
[1773122393038,0.03,70011.0,70002.0,0.08749252]
[1773122393958,0.07141632,70012.0,70003.0,0.01462618]
[1773122394188,0.07141734,70011.0,70003.0,0.01462618]
[1773122395004,0.03,70010.0,70003.0,0.01462618]
[1773122396853,0.03022001,70014.0,70005.0,0.01462618]
[1773122397356,0.10163434,70014.0,70006.0,0.01462618]
[1773122398115,0.00022001,70014.0,70006.0,0.07881809]
[1773122398319,0.00022001,70014.0,70007.0,0.01462618]
[1773122398545,0.00022001,70014.0,70008.0,0.00144]
[1773122398714,0.00022001,70014.0,70009.0,0.01462618]
[1773122399059,0.00022001,70014.0,70009.0,0.07141856]
[1773122399287,0.00022001,70014.0,70010.0,0.01462618]
[1773122399840,3.636e-05,70014.0,70010.0,0.01462618]
[1773122400526,0.00037641,70017.0,70010.0,0.01462618]
[1773122400937,0.00022001,70021.0,70011.0,0.01462618]
[1773122401147,0.00022001,70021.0,70014.0,0.01462618]
[1773122401373,0.00022001,70021.0,70006.0,0.07141938]
[1773122401374,0.07162732,70021.0,70009.0,0.07141938]
[1773122401709,0.03,70012.0,69998.0,0.07143056]
[1773122401968,0.08444312,70010.0,69998.0,0.07143056]
[1773122402372,0.08444312,70010.0,69997.0,0.07143133]
[1773122402502,0.08444312,70010.0,70002.0,0.0002]
[1773122402690,0.08444312,70010.0,69996.0,0.2441293]
[1773122402691,0.03,70006.0,69996.0,0.2441293]
[1773122402896,0.03,70004.0,69996.0,0.0730723]
[1773122403610,0.00022001,70014.0,70000.0,0.01462618]
[1773122403829,0.07140974,70019.0,70002.0,0.01462618]
[1773122404049,0.03,70018.0,70006.0,0.01462618]
[1773122405412,0.07162454,70024.0,70010.0,0.01462618]
[1773122405615,0.07162454,70024.0,70012.0,0.01462618]
[1773122406282,0.07162454,70024.0,70006.0,0.07142142]
[1773122406283,0.05444312,70022.0,70005.0,0.07142246]
[1773122406438,0.01392948,70020.0,70006.0,0.00144]
[1773122406641,0.01392948,70018.0,70006.0,0.00144]
[1773122406857,0.05444312,70022.0,70006.0,0.01606618]
[1773122407050,0.05444312,70022.0,70007.0,0.00144]
[1773122407264,0.0683726,70022.0,70007.0,0.00144]
[1773122408073,0.07140714,70021.0,70008.0,0.0714204]
[1773122409435,0.07140714,70021.0,70008.0,0.08633255]
[1773122410039,0.07140714,70021.0,70010.0,0.07141836]
[1773122410191,0.07140714,70021.0,70011.0,0.01491215]
[1773122410609,0.0728469,70022.0,70011.0,0.01491215]
[1773122412776,0.0728469,70022.0,70011.0,0.07141662]
[1773122412996,0.17110438,70022.0,70011.0,0.07285662]
[1773122414908,0.08470674,70021.0,70010.0,0.07141734]
[1773122415133,0.09825748,70019.0,70010.0,0.07141734]
[1773122415610,0.03,70020.0,70010.0,0.07141734]
[1773122417747,0.03,70019.0,70010.0,0.07141734]
[1773122418133,0.03,70019.0,70011.0,0.01491215]
[1773122420033,0.03,70019.0,70006.0,0.08472343]
[1773122420034,0.03,70015.0,69995.0,0.0002]
[1773122420248,0.07140952,70019.0,69998.0,0.0728599]
[1773122420249,0.03,70009.0,69998.0,0.0728599]
[1773122420452,0.04355074,70009.0,69998.0,0.0728599]
[1773122421658,0.03,70008.0,69998.0,0.0728599]
[1773122421869,0.03,70008.0,69999.0,0.01491215]
[1773122422270,0.0715361,70019.0,70002.0,0.01491215]
[1773122422464,0.0715361,70019.0,70003.0,0.01491215]
[1773122422663,0.0715361,70019.0,70005.0,0.01491215]
[1773122422892,0.03,70018.0,70005.0,0.01491215]
[1773122423278,0.03,70018.0,70004.0,0.00144]
[1773122424142,0.12083701,70019.0,70005.0,0.07142346]
[1773122424985,0.05229432,70018.0,70005.0,0.07142346]
[1773122426269,0.03,70016.0,70005.0,0.07142346]
[1773122426470,0.03,70016.0,70006.0,0.00144]
[1773122426903,0.03,70016.0,70005.0,0.07142346]
[1773122427210,0.03,70015.0,70006.0,0.00144]
[1773122428198,0.03,70015.0,70007.0,0.07142142]
[1773122428595,0.10141341,70015.0,70007.0,0.07142142]
[1773122430281,0.10141341,70015.0,70008.0,0.00144]
[1773122430458,0.10141341,70015.0,70003.0,0.0002]
[1773122430660,0.10141341,70015.0,70008.0,0.00144]
[1773122431017,0.03,70013.0,70007.0,0.00144]
[1773122431374,0.05229432,70014.0,69997.0,0.00144]
[1773122431375,0.03,70003.0,69997.0,0.00144]
[1773122431667,0.08229432,70001.0,69997.0,0.00144]
[1773122432647,0.08229432,70001.0,69996.0,0.07163257]
[1773122432648,0.03,70000.0,69996.0,0.07163257]
[1773122432849,0.03,70000.0,69997.0,0.00144]
[1773122433645,0.03,69999.0,69996.0,0.07163257]
[1773122433849,0.03,69999.0,69996.0,0.07307257]
[1773122434259,0.05229432,70003.0,69996.0,0.07307257]
[1773122434707,0.05229432,70003.0,69996.0,0.07163257]
[1773122434861,0.03,70002.0,69996.0,0.07307257]
[1773122436050,0.03,70001.0,69996.0,0.07163257]
[1773122436191,0.08229432,69999.0,69996.0,0.0002]
[1773122436402,0.08229432,69999.0,69994.0,0.07176048]
[1773122436403,0.05229432,69996.0,69994.0,0.0003259]
[1773122436596,0.03,69995.0,69994.0,0.0017659]
[1773122436952,0.03,69995.0,69994.0,0.0003259]
[1773122437151,0.03,69995.0,69990.0,0.07163838]
[1773122437298,0.03,69995.0,69992.0,0.00164]
[1773122437635,0.03,69994.0,69992.0,0.00164]
[1773122438656,0.03,69993.0,69989.0,0.0002]
[1773122438826,0.07143301,69996.0,69986.0,0.0002]
[1773122438827,0.08229432,69989.0,69986.0,0.0002]
[1773122439027,0.03,69987.0,69986.0,0.00144]
[1773122439380,0.03,69987.0,69985.0,0.0003535]
[1773122439538,0.03,69987.0,69985.0,0.0017935]
[1773122439945,0.15137832,69996.0,69983.0,0.07164551]
[1773122439946,0.03,69985.0,69983.0,0.0002]
[1773122440293,0.03,69981.0,69978.0,0.00144]
[1773122440508,0.03,69981.0,69977.0,0.07304507]
[1773122441265,0.03,69980.0,69977.0,0.07304507]
[1773122441470,0.1208243,69985.0,69977.0,0.07304507]
[1773122441711,0.05059429,69984.0,69978.0,0.00144]
[1773122441939,0.05059429,69984.0,69977.0,0.0015935]
[1773122442219,0.05071572,69983.0,69977.0,0.00144]
[1773122442447,0.03,69978.0,69977.0,0.00144]
[1773122442672,0.03,69978.0,69976.0,0.00144]
[1773122443915,0.03,69978.0,69975.0,0.07168391]
[1773122444120,0.03,69978.0,69976.0,0.00144]
[1773122444320,0.03,69982.0,69976.0,0.00144]
[1773122444512,0.03,69980.0,69979.0,0.0002]
[1773122446134,0.03,69980.0,69976.0,0.07289247]
[1773122446536,0.03,69982.0,69976.0,0.07289247]
[1773122447095,0.03,69982.0,69976.0,0.00144]
[1773122447311,0.03,69982.0,69967.0,0.07146162]
[1773122447312,0.03,69978.0,69967.0,0.07146162]
[1773122447480,0.03,69974.0,69969.0,0.00144]
[1773122447646,0.03,69974.0,69960.0,0.0716223]
[1773122447647,0.03,69970.0,69960.0,0.0716223]
[1773122447849,0.07994531,69972.0,69960.0,0.0716223]
[1773122448046,0.05071572,69971.0,69961.0,0.00144]
[1773122448262,0.05071572,69971.0,69960.0,0.0716223]
[1773122448464,0.07994531,69969.0,69960.0,0.0001535]
[1773122448676,0.03,69966.0,69960.0,0.0015935]
[1773122448871,0.03,69962.0,69960.0,0.0015935]
[1773122449288,0.07146226,69967.0,69958.0,0.00144]
[1773122449289,0.03,69960.0,69958.0,0.00144]
[1773122449564,0.08071572,69960.0,69957.0,0.00144]
[1773122449798,0.08071572,69960.0,69956.0,0.00144]
[1773122449799,0.03,69960.0,69956.0,0.00144]
[1773122449966,0.05071572,69959.0,69956.0,0.00144]
[1773122450166,0.05067333,69959.0,69956.0,0.00144]
[1773122450364,0.07146226,69967.0,69956.0,0.00144]
[1773122450575,0.07146226,69967.0,69956.0,0.0015615]
[1773122450783,0.05069453,69965.0,69956.0,0.0015615]
[1773122450985,0.07146226,69967.0,69950.0,0.07170907]
[1773122450986,0.03,69960.0,69950.0,0.07170907]
[1773122451337,0.05031302,69958.0,69950.0,0.07170909]
[1773122451824,0.05031302,69958.0,69950.0,0.07314909]
[1773122452041,0.05031302,69958.0,69951.0,0.0714786]
[1773122452346,0.05031302,69958.0,69951.0,0.0729186]
[1773122452541,0.05031302,69958.0,69951.0,0.0714786]
[1773122452903,0.05031302,69958.0,69956.0,0.0002]
[1773122453106,0.07147189,69958.0,69956.0,0.0002]
[1773122453306,0.08050377,69957.0,69956.0,0.0002]
[1773122454150,0.00144,69962.0,69956.0,0.0002]